lending/lending_fUSD_20251114
["ID","MTS","AMOUNT","RATE_DAILY","PERIOD"]
[393926204,1763097424711,-3429.0,0.00020188,2]
[393926205,1763097424734,-608.0,0.00020188,2]
[393926206,1763097424759,-575.0,0.00020188,2]
[393926207,1763097424781,-1318.0,0.00020188,2]
[393926208,1763097424804,-560.0,0.00020188,2]
[393926209,1763097424826,-1598.0,0.00020188,2]
[393926210,1763097424849,-821.0,0.00020188,2]
[393926211,1763097424874,-907.0,0.00020188,2]
[393926212,1763097424897,-377.41660547,0.00022421,2]
[393926213,1763097424919,-3429.0,0.00023188,2]
[393926214,1763097424945,-575.0,0.00023188,2]
[393926215,1763097424973,-686.986,0.00023188,2]
[393926216,1763097424998,-560.0,0.00023188,2]
[393926217,1763097425022,-1598.0,0.00023188,2]
[393926218,1763097425048,-821.0,0.00023188,2]
[393926219,1763097425070,-907.0,0.00023188,2]
[393926220,1763097425093,-342.82540376,0.000232,2]
[393926221,1763097425119,-502.15924823,0.000232,2]
[393926222,1763097425140,-512.82488475,0.000232,2]
[393926223,1763097425162,-502.72537723,0.000232,2]
[393926224,1763097425183,-535.87878682,0.000232,2]
[393926225,1763097425206,-69141.0275276,0.000248,3]
[393926226,1763097425228,-377.41660547,0.00025075,2]
[393926227,1763097425249,-3429.0,0.00026188,2]
[393926228,1763097425270,-543.849,0.00026188,2]
[393926229,1763097425292,-365.319,0.00026188,2]
[393926230,1763097425313,-1598.0,0.00026188,2]
[393926231,1763097425335,-821.0,0.00026188,2]
[393926232,1763097425356,-907.0,0.00026188,2]
[393926233,1763097425380,-377.41660547,0.00027729,2]
[393926234,1763097425401,-1567.174,0.00029188,2]
[393926235,1763097425422,-907.0,0.00029188,2]
[393926236,1763097425444,-500.0,0.00029342,2]
[393926237,1763097425465,-377.41660547,0.00030382,2]
[393926238,1763097425487,-907.0,0.00032188,2]
[393926239,1763097425508,-4155.0,0.00032463,7]
[393926240,1763097425530,-166.66,0.00032872,30]
[393926241,1763097425552,-377.41660547,0.00033036,2]
[393926242,1763097425576,-166.66,0.00033564,30]
[393926243,1763097425599,-1464.646,0.0003381,36]
[393926244,1763097425623,-152.404,0.0003381,36]
[393926245,1763097425646,-166.66,0.00034256,30]
[393926246,1763097425668,-166.66,0.00034948,30]
[393926247,1763097425690,-907.0,0.00035188,2]
[393926248,1763097425712,-151.0,0.00035595,2]
[393926249,1763097425734,-151.0,0.00035595,2]
[393926250,1763097425757,-151.0,0.00035595,2]
[393926252,1763097425778,-151.0,0.00035595,2]
[393926253,1763097425802,-151.0,0.00035595,2]
[393926255,1763097425825,-151.0,0.00035595,2]
[393926256,1763097425849,-151.0,0.00035595,2]
[393926257,1763097425873,-151.0,0.00035595,2]
[393926258,1763097425896,-151.0,0.00035595,2]
[393926259,1763097425920,-151.0,0.00035595,2]
[393926260,1763097425945,-151.0,0.00035595,2]
[393926261,1763097425980,-151.0,0.00035595,2]
[393926262,1763097426005,-151.0,0.00035595,2]
[393926263,1763097426053,-151.0,0.00035595,2]
[393926264,1763097426078,-151.0,0.00035595,2]
[393926265,1763097426103,-151.0,0.00035595,2]
[393926266,1763097426132,-151.0,0.00035595,2]
[393926267,1763097426157,-151.0,0.00035595,2]
[393926268,1763097426181,-151.0,0.00035595,2]
[393926269,1763097426206,-23047.0091759,0.00035606,3]
[393926270,1763097426229,-500.0,0.00035616,2]
[393926271,1763097426251,-500.0,0.00035616,2]
[393926272,1763097426275,-500.0,0.00035616,2]
[393926273,1763097426298,-500.0,0.00035616,2]
[393926274,1763097426321,-500.0,0.00035616,2]
[393926275,1763097426342,-500.0,0.00035616,2]
[393926276,1763097426367,-218.51749259,0.00035616,2]
[393926277,1763097426388,-584.15,0.00035616,2]
[393926278,1763097426409,-584.15,0.00035616,2]
[393926279,1763097426431,-584.15,0.00035616,2]
[393926280,1763097426453,-584.15,0.00035616,2]
[393926281,1763097426475,-584.15,0.00035616,2]
[393926282,1763097426496,-584.15,0.00035616,2]
[393926283,1763097426517,-584.15,0.00035616,2]
[393926284,1763097426539,-584.15,0.00035616,2]
[393926285,1763097426562,-584.15,0.00035616,2]
[393926286,1763097426584,-584.15,0.00035616,2]
[393926287,1763097426605,-584.15,0.00035616,2]
[393926288,1763097426630,-584.15,0.00035616,2]
[393926289,1763097426651,-584.15,0.00035616,2]
[393926290,1763097426676,-584.15,0.00035616,2]
[393926291,1763097426698,-584.15,0.00035616,2]
[393926292,1763097426720,-584.15,0.00035616,2]
[393926293,1763097426742,-584.15,0.00035616,2]
[393926294,1763097426763,-584.15,0.00035616,2]
[393926295,1763097426784,-584.15,0.00035616,2]
[393926296,1763097426805,-584.15,0.00035616,2]
[393926297,1763097426826,-584.15,0.00035616,2]
[393926298,1763097426847,-584.15,0.00035616,2]
[393926299,1763097426871,-584.15,0.00035616,2]
[393926300,1763097426893,-584.38389671,0.00035616,2]
[393926301,1763097426913,-500.0,0.00035616,2]
[393926302,1763097426936,-500.0,0.00035616,2]
[393926303,1763097426964,-500.0,0.00035616,2]
[393926304,1763097426985,-190.33653254,0.00035616,2]
[393926305,1763097427009,-166.66,0.0003564,30]
[393926306,1763097427030,-502.72635091,0.00035673,5]
[393926307,1763097427053,-508.89704052,0.00035673,5]
[393926308,1763097427076,-503.57835272,0.00035673,5]
[393926309,1763097427097,-500.0,0.00035673,5]
[393926310,1763097427124,-364.16950107,0.00035673,5]
[393926311,1763097427146,-507.23583524,0.00035673,5]
[393926312,1763097427170,-377.41660547,0.0003569,2]
[393926313,1763097427193,-150.755194,0.00036246,20]
[393926314,1763097427215,-150.755194,0.00036246,20]
[393926315,1763097427238,-150.755194,0.00036246,20]
[393926316,1763097427260,-150.755194,0.00036246,20]
[393926317,1763097427283,-150.755194,0.00036246,20]
[393926318,1763097427307,-150.755194,0.00036246,20]
[393926319,1763097427331,-150.755194,0.00036246,20]
[393926320,1763097427352,-150.755194,0.00036246,20]
[393926321,1763097427378,-150.939546,0.00036246,20]
[393926322,1763097427399,-150.939546,0.00036246,20]
[393926323,1763097427421,-150.939546,0.00036246,20]
[393926324,1763097427444,-150.939546,0.00036246,20]
[393926325,1763097427466,-150.939546,0.00036246,20]
[393926326,1763097427488,-150.939546,0.00036246,20]
[393926327,1763097427511,-150.939546,0.00036246,20]
[393926328,1763097427533,-150.939546,0.00036246,20]
[393926329,1763097427557,-156.826511,0.00036246,20]
[393926330,1763097427582,-156.826511,0.00036246,20]
[393926331,1763097427607,-156.826511,0.00036246,20]
[393926332,1763097427635,-156.826511,0.00036246,20]
[393926333,1763097427660,-156.826511,0.00036246,20]
[393926334,1763097427686,-156.826511,0.00036246,20]
[393926335,1763097427709,-156.826511,0.00036246,20]
[393926336,1763097427733,-156.826511,0.00036246,20]
[393926337,1763097427757,-156.826511,0.00036246,20]
[393926338,1763097427781,-156.826511,0.00036246,20]
[393926339,1763097427804,-163.850523,0.00036246,20]
[393926340,1763097427827,-160.603281,0.00036246,20]
[393926341,1763097427851,-157.919104,0.00036246,20]
[393926342,1763097427878,-157.919104,0.00036246,20]
[393926343,1763097427900,-157.919104,0.00036246,20]
[393926344,1763097427923,-153.429594,0.00036246,20]
[393926345,1763097427944,-153.429594,0.00036246,20]
[393926346,1763097427968,-153.429594,0.00036246,20]
[393926347,1763097427990,-153.429594,0.00036246,20]
[393926348,1763097428013,-153.429594,0.00036246,20]
[393926349,1763097428042,-153.429594,0.00036246,20]
[393926350,1763097428065,-161.446682,0.00036246,20]
[393926351,1763097428087,-161.446682,0.00036246,20]
[393926352,1763097428111,-161.446682,0.00036246,20]
[393926353,1763097428137,-154.543714,0.00036246,20]
[393926354,1763097428161,-154.543714,0.00036246,20]
[393926355,1763097428185,-154.543714,0.00036246,20]
[393926356,1763097428209,-154.543714,0.00036246,20]
[393926357,1763097428233,-154.543714,0.00036246,20]
[393926358,1763097428263,-166.66,0.00036332,30]
[393926359,1763097428289,-153.0,0.00036537,2]
[393926360,1763097428312,-2000.0,0.00038,2]
[393926361,1763097428334,-2000.0,0.00038,2]
[393926362,1763097428358,-2000.0,0.00038,2]
[393926363,1763097428383,-995.1634,0.00038,2]
[393926364,1763097428407,-240.14436073,0.000381,33]
[393926365,1763097428430,-907.0,0.00038188,2]
[393926366,1763097428455,-377.41660547,0.00038344,2]
[393926367,1763097428477,-182.165,0.00038888,30]
[393926368,1763097428499,-2000.0,0.00039899,2]
[393926369,1763097428522,-1700.0,0.000399,14]
[393926370,1763097428544,-300.0,0.00039985,2]
[393926371,1763097428568,-3500.0,0.0004,14]
[393926372,1763097428590,-300.0,0.00040036,2]
[393926373,1763097428616,-300.0,0.00040046,2]
[393926374,1763097428643,-300.0,0.00040094,2]
[393926375,1763097428668,-5200.0,0.000401,14]
[393926376,1763097428691,-300.0,0.00040107,2]
[393926377,1763097428716,-23047.0091759,0.00040115,4]
[393926378,1763097428739,-300.0,0.00040116,2]
[393926379,1763097428762,-300.0,0.00040117,2]
[393926380,1763097428784,-300.0,0.0004012,2]
[393926381,1763097428808,-300.0,0.00040125,2]
[393926382,1763097428830,-300.0,0.00040128,2]
[393926383,1763097428854,-300.0,0.00040132,2]
[393926384,1763097428881,-300.0,0.00040143,2]
[393926385,1763097428907,-300.0,0.00040148,2]
[393926387,1763097428930,-300.0,0.00040189,2]
[393926388,1763097428954,-7000.0,0.000402,14]
[393926389,1763097428980,-300.0,0.00040202,2]
[393926390,1763097429004,-154.84887672,0.00040205,4]
[393926391,1763097429026,-300.0,0.0004021,2]
[393926392,1763097429051,-300.0,0.00040226,2]
[393926393,1763097429073,-300.0,0.00040231,2]
[393926394,1763097429096,-300.0,0.00040243,2]
[393926395,1763097429119,-300.0,0.00040255,2]
[393926396,1763097429141,-300.0,0.00040273,2]
[393926397,1763097429164,-300.0,0.00040276,2]
[393926398,1763097429277,-300.0,0.00040293,2]
[393926399,1763097429302,-300.0,0.00040299,2]
[393926400,1763097429327,-300.0,0.00040299,2]
[393926401,1763097429350,-300.0,0.00040299,2]
[393926402,1763097429375,-8800.0,0.000403,14]
[393926403,1763097429398,-300.0,0.00040316,2]
[393926404,1763097429422,-300.0,0.00040336,2]
[393926405,1763097429445,-300.0,0.00040347,2]
[393926406,1763097429468,-300.0,0.00040349,2]
[393926407,1763097429491,-300.0,0.00040357,2]
[393926408,1763097429514,-300.0,0.00040357,2]
[393926409,1763097429535,-300.0,0.00040358,2]
[393926410,1763097429558,-300.0,0.00040358,2]
[393926411,1763097429580,-300.0,0.00040398,2]
[393926412,1763097429603,-2000.0,0.00040399,30]
[393926413,1763097429627,-1700.0,0.000404,14]
[393926414,1763097429656,-4364.0,0.00040402,5]
[393926415,1763097429685,-300.0,0.00040402,2]
[393926416,1763097429709,-300.0,0.00040453,2]
[393926417,1763097429733,-300.0,0.00040479,2]
[393926418,1763097429760,-300.0,0.00040491,2]
[393926419,1763097429784,-1700.0,0.000405,14]
[393926420,1763097429807,-36094.95494943,0.000405,30]
[393926421,1763097429831,-300.0,0.00040506,2]
[393926422,1763097429856,-300.0,0.00040507,2]
[393926423,1763097429888,-300.0,0.0004051,2]
[393926424,1763097429913,-300.0,0.0004054,2]
[393926425,1763097429937,-300.0,0.00040552,2]
[393926426,1763097429965,-300.0,0.00040563,2]
[393926427,1763097429990,-300.0,0.00040582,2]
[393926428,1763097430015,-300.0,0.00040597,2]
[393926429,1763097430041,-300.0,0.00040599,2]
[393926430,1763097430066,-1700.0,0.000406,14]
[393926431,1763097430091,-300.0,0.00040622,2]
[393926432,1763097430119,-300.0,0.00040641,2]
[393926433,1763097430143,-300.0,0.00040667,2]
[393926434,1763097430168,-300.0,0.00040679,2]
[393926435,1763097430192,-1700.0,0.000407,14]
[393926436,1763097430215,-300.0,0.00040715,2]
[393926437,1763097430238,-300.0,0.00040731,2]
[393926438,1763097430262,-300.0,0.00040736,2]
[393926439,1763097430287,-300.0,0.00040745,2]
[393926440,1763097430311,-300.0,0.00040751,2]
[393926441,1763097430334,-300.0,0.00040759,2]
[393926442,1763097430357,-300.0,0.0004078,2]
[393926443,1763097430386,-23047.0091759,0.0004079,4]
[393926444,1763097430409,-300.0,0.00040796,2]
[393926445,1763097430433,-2300.0,0.000408,14]
[393926446,1763097430456,-300.0,0.00040817,2]
[393926447,1763097430480,-300.0,0.00040817,2]
[393926448,1763097430502,-300.0,0.00040826,2]
[393926449,1763097430525,-187.96,0.00040838,14]
[393926450,1763097430548,-300.0,0.00040847,2]
[393926451,1763097430572,-300.0,0.00040871,2]
[393926452,1763097430595,-300.0,0.00040883,2]
[393926453,1763097430619,-300.0,0.00040905,2]
[393926454,1763097430644,-300.0,0.00040928,2]
[393926455,1763097430667,-300.0,0.0004095,2]
[393926456,1763097430693,-300.0,0.00040959,2]
[393926457,1763097430717,-300.0,0.0004097,2]
[393926458,1763097430739,-400.0,0.0004097,3]
[393926459,1763097430762,-300.0,0.00040987,2]
[393926460,1763097430786,-300.0,0.0004099,2]
[393926461,1763097430809,-377.41660547,0.00040998,15]
[393926462,1763097430832,-173.78010963,0.00040998,2]
[393926463,1763097430855,-10926.07454149,0.00040998,2]
[393926464,1763097430877,-2000.0,0.00040999,30]
[393926465,1763097430899,-150.0,0.00041,60]
[393926466,1763097430922,-300.0,0.00041007,2]
[393926467,1763097430944,-300.0,0.00041034,2]
[393926468,1763097430971,-300.0,0.00041035,2]
[393926469,1763097430995,-300.0,0.0004105,2]
[393926470,1763097431018,-173.78010961,0.00041064,2]
[393926471,1763097431042,-10926.07454147,0.00041064,2]
[393926472,1763097431067,-300.0,0.00041083,2]
[393926473,1763097431091,-23047.0091759,0.00041087,4]
[393926474,1763097431117,-6433.71299401,0.00041087,4]
[393926475,1763097431141,-345705.137638,0.00041088,4]
[393926476,1763097431166,-450359.909581,0.00041088,4]
[393926477,1763097431191,-605.47,0.00041095,2]
[393926478,1763097431217,-605.47,0.00041095,2]
[393926479,1763097431241,-605.47,0.00041095,2]
[393926480,1763097431264,-605.47,0.00041095,2]
[393926481,1763097431289,-605.47,0.00041095,2]
[393926482,1763097431315,-605.47,0.00041095,2]
[393926483,1763097431338,-605.47,0.00041095,2]
[393926484,1763097431362,-605.47,0.00041095,2]
[393926485,1763097431387,-605.47,0.00041095,2]
[393926486,1763097431411,-605.47,0.00041095,2]
[393926487,1763097431434,-605.47,0.00041095,2]
[393926488,1763097431459,-605.47,0.00041095,2]
[393926489,1763097431482,-605.47,0.00041095,2]
[393926490,1763097431506,-605.47,0.00041095,2]
[393926491,1763097431530,-605.47,0.00041095,2]
[393926492,1763097431558,-605.47,0.00041095,2]
[393926493,1763097431582,-605.47,0.00041095,2]
[393926494,1763097431606,-605.47,0.00041095,2]
[393926495,1763097431631,-605.47,0.00041095,2]
[393926496,1763097431656,-605.47,0.00041095,2]
[393926497,1763097431682,-605.47,0.00041095,2]
[393926498,1763097431898,-605.47,0.00041095,2]
[393926499,1763097431921,-605.47,0.00041095,2]
[393926500,1763097431944,-605.66853258,0.00041095,2]
[393926501,1763097431970,-541.95369957,0.00041096,8]
[393926502,1763097431995,-300.0,0.00041096,2]
[393926503,1763097432019,-2000.0,0.00041097,30]
[393926504,1763097432044,-782.45084086,0.00041098,2]
[393926505,1763097432068,-500.0,0.00041098,120]
[393926506,1763097432092,-500.0,0.00041098,120]
[393926507,1763097432115,-500.0,0.00041098,120]
[393926508,1763097432142,-500.0,0.00041098,120]
[393926509,1763097432165,-500.0,0.00041098,120]
[393926510,1763097432196,-500.0,0.00041098,120]
[393926511,1763097432219,-608.0,0.00041098,120]
[393926512,1763097432245,-500.0,0.00041098,120]
[393926513,1763097432270,-500.0,0.00041098,120]
[393926514,1763097432296,-500.0,0.00041098,120]
[393926515,1763097432319,-500.0,0.00041098,120]
[393926516,1763097432342,-500.0,0.00041098,120]
[393926517,1763097432367,-500.0,0.00041098,120]
[393926518,1763097432393,-500.0,0.00041098,120]
[393926519,1763097432419,-500.0,0.00041098,120]
[393926520,1763097432443,-500.0,0.00041098,120]
[393926521,1763097432466,-500.0,0.00041098,120]
[393926522,1763097432490,-500.0,0.00041098,120]
[393926523,1763097432515,-500.0,0.00041098,120]
[393926524,1763097432539,-500.0,0.00041098,120]
[393926525,1763097432564,-500.0,0.00041098,120]
[393926526,1763097432591,-500.0,0.00041098,120]
[393926527,1763097432616,-500.0,0.00041098,120]
[393926528,1763097432643,-500.0,0.00041098,120]
[393926529,1763097432669,-500.0,0.00041098,120]
[393926530,1763097432695,-500.0,0.00041098,120]
[393926531,1763097432721,-500.0,0.00041098,120]
[393926532,1763097432745,-500.0,0.00041098,120]
[393926533,1763097432769,-500.0,0.00041098,120]
[393926534,1763097432793,-500.0,0.00041098,120]
[393926535,1763097432817,-500.0,0.00041098,120]
[393926536,1763097432842,-500.0,0.00041098,120]
[393926537,1763097432867,-500.0,0.00041098,120]
[393926538,1763097432895,-500.0,0.00041098,120]
[393926539,1763097432920,-572.0,0.00041098,120]
[393926540,1763097432946,-500.0,0.00041098,120]
[393926541,1763097432977,-500.0,0.00041098,120]
[393926542,1763097433001,-500.0,0.00041098,120]
[393926543,1763097433028,-500.0,0.00041098,120]
[393926544,1763097433053,-500.0,0.00041098,120]
[393926545,1763097433078,-500.0,0.00041098,120]
[393926546,1763097433103,-500.0,0.00041098,120]
[393926547,1763097433129,-500.0,0.00041098,120]
[393926548,1763097433154,-500.0,0.00041098,120]
[393926549,1763097433179,-500.0,0.00041098,120]
[393926550,1763097433202,-698.0,0.00041098,120]
[393926551,1763097433225,-500.0,0.00041098,120]
[393926552,1763097433249,-500.0,0.00041098,120]
[393926553,1763097433275,-500.0,0.00041098,120]
[393926554,1763097433299,-500.0,0.00041098,120]
[393926555,1763097433323,-500.0,0.00041098,120]
[393926556,1763097433366,-500.0,0.00041098,120]
[393926557,1763097433395,-500.0,0.00041098,120]
[393926558,1763097433422,-500.0,0.00041098,120]
[393926559,1763097433454,-886.0,0.00041098,120]
[393926560,1763097433479,-500.0,0.00041098,120]
[393926561,1763097433502,-500.0,0.00041098,120]
[393926562,1763097433524,-500.0,0.00041098,120]
[393926563,1763097433547,-500.0,0.00041098,120]
[393926564,1763097433572,-500.0,0.00041098,120]
[393926565,1763097433595,-500.0,0.00041098,120]
[393926566,1763097433623,-500.0,0.00041098,120]
[393926567,1763097433648,-500.0,0.00041098,120]
[393926568,1763097433673,-500.0,0.00041098,120]
[393926569,1763097433698,-500.0,0.00041098,120]
[393926570,1763097433722,-500.0,0.00041098,120]
[393926571,1763097433747,-500.0,0.00041098,120]
[393926572,1763097433771,-500.0,0.00041098,120]
[393926573,1763097433795,-500.0,0.00041098,120]
[393926574,1763097433818,-500.0,0.00041098,120]
[393926575,1763097433842,-500.0,0.00041098,120]
[393926576,1763097433865,-500.0,0.00041098,120]
[393926577,1763097433890,-500.0,0.00041098,120]
[393926578,1763097433914,-500.0,0.00041098,120]
[393926579,1763097433937,-500.0,0.00041098,120]
[393926580,1763097433966,-500.0,0.00041098,120]
[393926581,1763097433989,-500.0,0.00041098,120]
[393926582,1763097434013,-500.0,0.00041098,120]
[393926583,1763097434039,-500.0,0.00041098,120]
[393926584,1763097434064,-500.0,0.00041098,120]
[393926585,1763097434111,-500.0,0.00041098,120]
[393926586,1763097434137,-500.0,0.00041098,120]
[393926587,1763097434160,-500.0,0.00041098,120]
[393926588,1763097434184,-500.0,0.00041098,120]
[393926589,1763097434209,-500.0,0.00041098,120]
[393926590,1763097434233,-500.0,0.00041098,120]
[393926591,1763097434255,-500.0,0.00041098,120]
[393926592,1763097434278,-500.0,0.00041098,120]
[393926593,1763097434302,-500.0,0.00041098,120]
[393926594,1763097434325,-500.0,0.00041098,120]
[393926595,1763097434348,-500.0,0.00041098,120]
[393926596,1763097434372,-500.0,0.00041098,120]
[393926597,1763097434395,-500.0,0.00041098,120]
[393926598,1763097434417,-500.0,0.00041098,120]
[393926599,1763097434440,-500.0,0.00041098,120]
[393926600,1763097434463,-500.0,0.00041098,120]
[393926601,1763097434485,-500.0,0.00041098,120]
[393926602,1763097434509,-500.0,0.00041098,120]
[393926603,1763097434534,-500.0,0.00041098,120]
[393926604,1763097434557,-500.0,0.00041098,120]
[393926605,1763097434581,-500.0,0.00041098,120]
[393926606,1763097434605,-500.0,0.00041098,120]
[393926607,1763097434630,-500.0,0.00041098,120]
[393926608,1763097434653,-500.0,0.00041098,120]
[393926609,1763097434677,-500.0,0.00041098,120]
[393926610,1763097434700,-500.0,0.00041098,120]
[393926611,1763097434724,-500.0,0.00041098,120]
[393926612,1763097434750,-500.0,0.00041098,120]
[393926613,1763097434774,-500.0,0.00041098,120]
[393926614,1763097434798,-500.0,0.00041098,120]
[393926615,1763097434823,-500.0,0.00041098,120]
[393926616,1763097434848,-500.0,0.00041098,120]
[393926617,1763097434876,-500.0,0.00041098,120]
[393926618,1763097434901,-678.0,0.00041098,120]
[393926619,1763097434927,-500.0,0.00041098,120]
[393926620,1763097434959,-500.0,0.00041098,120]
[393926621,1763097434982,-500.0,0.00041098,120]
[393926622,1763097435005,-500.0,0.00041098,120]
[393926623,1763097435029,-500.0,0.00041098,120]
[393926624,1763097435053,-500.0,0.00041098,120]
[393926625,1763097435078,-500.0,0.00041098,120]
[393926626,1763097435103,-500.0,0.00041098,120]
[393926627,1763097435132,-500.0,0.00041098,120]
[393926628,1763097435155,-500.0,0.00041098,120]
[393926629,1763097435179,-500.0,0.00041098,120]
[393926630,1763097435202,-500.0,0.00041098,120]
[393926631,1763097435225,-500.0,0.00041098,120]
[393926632,1763097435250,-500.0,0.00041098,120]
[393926633,1763097435273,-500.0,0.00041098,120]
[393926634,1763097435297,-500.0,0.00041098,120]
[393926635,1763097435320,-500.0,0.00041098,120]
[393926636,1763097435343,-500.0,0.00041098,120]
[393926637,1763097435367,-500.0,0.00041098,120]
[393926638,1763097435394,-500.0,0.00041098,120]
[393926639,1763097435417,-500.0,0.00041098,120]
[393926640,1763097435441,-500.0,0.00041098,120]
[393926641,1763097435465,-500.0,0.00041098,120]
[393926642,1763097435489,-500.0,0.00041098,120]
[393926643,1763097435512,-500.0,0.00041098,120]
[393926644,1763097435535,-500.0,0.00041098,120]
[393926645,1763097435559,-500.0,0.00041098,120]
[393926646,1763097435582,-500.0,0.00041098,120]
[393926647,1763097435607,-500.0,0.00041098,120]
[393926648,1763097435632,-500.0,0.00041098,120]
[393926649,1763097435655,-500.0,0.00041098,120]
[393926650,1763097435678,-500.0,0.00041098,120]
[393926651,1763097435701,-500.0,0.00041098,120]
[393926652,1763097435724,-500.0,0.00041098,120]
[393926653,1763097435747,-500.0,0.00041098,120]
[393926654,1763097435770,-500.0,0.00041098,120]
[393926655,1763097435794,-500.0,0.00041098,120]
[393926656,1763097435817,-500.0,0.00041098,120]
[393926657,1763097435841,-500.0,0.00041098,120]
[393926658,1763097435865,-500.0,0.00041098,120]
[393926659,1763097435892,-500.0,0.00041098,120]
[393926660,1763097435916,-500.0,0.00041098,120]
[393926661,1763097435941,-500.0,0.00041098,120]
[393926662,1763097435968,-500.0,0.00041098,120]
[393926663,1763097435991,-500.0,0.00041098,120]
[393926664,1763097436015,-500.0,0.00041098,120]
[393926665,1763097436040,-500.0,0.00041098,120]
[393926666,1763097436063,-500.0,0.00041098,120]
[393926667,1763097436085,-500.0,0.00041098,120]
[393926668,1763097436108,-500.0,0.00041098,120]
[393926669,1763097436132,-500.0,0.00041098,120]
[393926670,1763097436155,-500.0,0.00041098,120]
[393926671,1763097436179,-500.0,0.00041098,120]
[393926672,1763097436203,-500.0,0.00041098,120]
[393926673,1763097436226,-500.0,0.00041098,120]
[393926674,1763097436249,-500.0,0.00041098,120]
[393926675,1763097436273,-500.0,0.00041098,120]
[393926676,1763097436298,-500.0,0.00041098,120]
[393926677,1763097436321,-500.0,0.00041098,120]
[393926678,1763097436343,-500.0,0.00041098,120]
[393926679,1763097436367,-500.0,0.00041098,120]
[393926680,1763097436393,-500.0,0.00041098,120]
[393926681,1763097436415,-500.0,0.00041098,120]
[393926682,1763097436438,-500.0,0.00041098,120]
[393926683,1763097436460,-500.0,0.00041098,120]
[393926684,1763097436483,-500.0,0.00041098,120]
[393926685,1763097436508,-500.0,0.00041098,120]
[393926686,1763097436532,-590.0,0.00041098,120]
[393926687,1763097436557,-500.0,0.00041098,120]
[393926688,1763097436582,-500.0,0.00041098,120]
[393926689,1763097436608,-500.0,0.00041098,120]
[393926690,1763097436635,-500.0,0.00041098,120]
[393926691,1763097436659,-500.0,0.00041098,120]
[393926692,1763097436685,-500.0,0.00041098,120]
[393926693,1763097436709,-500.0,0.00041098,120]
[393926694,1763097436734,-500.0,0.00041098,120]
[393926695,1763097436757,-500.0,0.00041098,120]
[393926696,1763097436781,-500.0,0.00041098,120]
[393926697,1763097436804,-500.0,0.00041098,120]
[393926698,1763097436829,-500.0,0.00041098,120]
[393926699,1763097436853,-500.0,0.00041098,120]
[393926700,1763097436879,-500.0,0.00041098,120]
[393926701,1763097436903,-500.0,0.00041098,120]
[393926702,1763097436927,-500.0,0.00041098,120]
[393926703,1763097436950,-500.0,0.00041098,120]
[393926704,1763097436975,-500.0,0.00041098,120]
[393926705,1763097436997,-500.0,0.00041098,120]
[393926706,1763097437022,-500.0,0.00041098,120]